{"text_format":"1","workbook":"xlsx","n_sheets":1,"sheets":["FCX_TW_21_02"],"not_rendered":{"charts":0,"images":0,"macros":1,"external_links":0,"defined_names":1,"comments":0,"pivot_tables":0},"unopened":[],"bounds":{"document_bytes":16777216,"sheet_cells":100000,"rows_first":2000,"rows_last":500,"rows_between":2000,"halvings":0,"cell_chars":16384,"cell_head_chars":4096},"cells_cut":0,"cells_raw":0,"read":"whole","date_system":"1900"}

{"sheet":"FCX_TW_21_02","index":0,"n_rows":23,"n_cols":9,"rows_kept":23,"cut":false,"hidden":false,"merged":[[2,0,2,8],[1,0,1,8],[0,0,0,8],[5,4,5,8],[3,0,3,8],[15,3,15,8],[17,1,17,8],[18,1,18,8],[19,1,19,8],[5,0,5,2]]}
["    BHARAT HEAVY ELECTRICAL LIMITED , JHANSI              "]
["FACTORY CIVIL DEPARTMENT"]
["PRICE BID"]
["Name of work :-    Works Contract for Sanitation & Housekeeping works in factory area."]
[]
["Tender Enq No-FCX/TW/21/02",null,null,null,"Date- "]
[]
["Sl. No.","Description of Work","% Allocation (Item-wise)","Unit ","Quantity ","Rates","Amount\nRs","Rate per Unit (in Rs.)","Amount (in Rs.)"]
[1,"टॉयलेट की सफाई - A Type - (upto 3 nos WC sheet, urinal pot, wash basin) की टायलेट क्लीनर द्वारा सफाई करना , टायलेट मे स्थित मिरर की गीले कपडे एवँ सूखे कपडे द्वारा सफाई करना तथा टायलेट मे स्थित टाइल्स की विम द्वारा सफाई करना तथा टायलेट मे फ्लश ,छत की सफाई करना तथा मकडी के जालो की सफाई करना व सफाई केपश्चात कूडा कचरा डस्टबीन तक फेँकना ( ब्रश , टायलेट क्लीनर इत्यादि  भेल द्वारा मुफ्त उपलब्ध कराया जायेगा)",{"$f":"G9/765440","v":0.18185618729096989},"प्रति टॉयलेट",6000,23.2,{"$f":"E9*F9","v":139200},{"$f":"I9/E9","v":0},{"$f":"C9*$I$15","v":0}]
[2,"टॉयलेट की सफाई - B Type - (from 4 to7 nos WC sheet, urinal pot, wash basin) की टायलेट क्लीनर द्वारा सफाई करना , टायलेट मे स्थित मिरर की गीले कपडे एवँ सूखे कपडे द्वारा सफाई करना तथा टायलेट मे स्थित टाइल्स की विम द्वारा सफाई करना तथा टायलेट मे फ्लश ,छत की सफाई करना तथा मकडी के जालो की सफाई करना व सफाई केपश्चात कूडा कचरा डस्टबीन तक फेँकना ब्रश इत्यादि की व्यवस्था ठेकेदार द्वारा की जायेगी । टायलेट क्लीनर  भेल द्वारा मुफ्त उपलब्ध कराया जायेगा",{"$f":"G10/765440","v":0.28846153846153844},"प्रति टॉयलेट",6900,32,{"$f":"E10*F10","v":220800},{"$f":"I10/E10","v":0},{"$f":"C10*$I$15","v":0}]
[3,"टॉयलेट की सफाई - C Type - (from 8 to 11 nos WC sheet, urinal pot, wash basin) की टायलेट क्लीनर द्वारा सफाई करना , टायलेट मे स्थित मिरर की गीले कपडे एवँ सूखे कपडे द्वारा सफाई करना तथा टायलेट मे स्थित टाइल्स की विम द्वारा सफाई करना तथा टायलेट मे फ्लश ,छत की सफाई करना तथा मकडी के जालो की सफाई करना व सफाई केपश्चात कूडा कचरा डस्टबीन तक फेँकना (ब्रश , टायलेट क्लीनर इत्यादि  भेल द्वारा मुफ्त उपलब्ध कराया जायेगा)",0.20693979933110368,"प्रति टॉयलेट",3600,44,158400,0,0]
[4,"टॉयलेट की सफाई - D Type - (from 12 to 16 nos WC sheet, urinal pot, wash basin) की टायलेट क्लीनर द्वारा सफाई करना , टायलेट मे स्थित मिरर की गीले कपडे एवँ सूखे कपडे द्वारा सफाई करना तथा टायलेट मे स्थित टाइल्स की विम द्वारा सफाई करना तथा टायलेट मे फ्लश ,छत की सफाई करना तथा मकडी के जालो की सफाई करना व सफाई केपश्चात कूडा कचरा डस्टबीन तक फेँकना (ब्रश , टायलेट क्लीनर इत्यादि  भेल द्वारा मुफ्त उपलब्ध कराया जायेगा)",0.1806020066889632,"प्रति टॉयलेट",2400,57.6,138240,0,0]
[5,"Drinking Area (open ) की सिंक की सफाई करना तथा टाइल्स की विम द्वारा सफाई करना तथा छत की सफाई करना तथा मकडी के जालो की सफाई करना व सफाई केपश्चात कूडा कचरा डस्टबीन तक फेँकना (ब्रश , क्लीनर इत्यादि  भेल द्वारा मुफ्त उपलब्ध कराया जायेगा)",4.1806020066889632E-2,"प्रति स्थान",4000,8,32000,0,0]
[6,"Drinking Area की सिंक की सफाई करना तथा टाइल्स की विम द्वारा सफाई करना तथा छत की सफाई करना तथा मकडी के जालो की सफाई करना व सफाई केपश्चात कूडा कचरा डस्टबीन तक फेँकना  (ब्रश ,  क्लीनर  इत्यादि  भेल द्वारा मुफ्त उपलब्ध कराया जायेगा)",0.10033444816053512,"प्रति स्थान",3200,24,76800,0,0]
[null,"Total ",{"$f":"SUM(C9:C14)","v":0.99999999999999989},null,null,null,{"$f":"SUM(G9:G14)","v":765440}]
[null,"IN WORDS",null,{"$f":"rup(I15)","v":0}]
[null,"Note -GST extra as applicable"]
[null,"1. Bidder has to quote in above unlocked cell only. Item rate shall be calculated automatically. Calculated item rates upto four decimal points may be adjusted w.r.t. gross total amount and it shall be the itemwise final rate for  execution of contract and all other purposes."]
[null,"2. Quoted gross total amount should be considered only if quoted in this excel sheet and print out of this should only be considered for evaluation.  If Price is quoted in any other format other than the Excel Sheet enclosed to the NIT , the offer of the bidder  will be rejected."]
[null,"3.During the execution , the quantity of various items may vary to any extent depending on requirement of work/site and as per discretion of BHEL."]
[]
[]
[null,null,null,"(Signature and Seal of  Contractor  )"]